Cogmind - Beta 14 @@@ ROGUE MODE // 2024.10.05 @ 14:10:28 Player: Corvi Result: Destroyed by Y-45 Defender with Heavy Assault Rifle Performance ------------- Evolutions (0) 0 Regions Visited (2) 400 Robots Destroyed (34) 170 Value Destroyed (676) 676 Prototype IDs (0) 0 Alien Tech Used (0) 0 Bonus (-190) -190 TOTAL SCORE: 1056 Bonus ------- Friendly Fire -190 Cogmind --------- Core Integrity 0/250 Matter 229/300 Energy 250/250 System Corruption 5% Temperature Cool (9) Movement Hovering (180) Ox2 Location -10/Mines Parts ------- > --- POWER (1) -------- Ion Engine > --- PROPULSION (2) --- Improved Hover Unit > --- UTILITY (2) ------ Small Storage Unit > --- WEAPON (2) ------- Grenade Launcher Hammer > --- INVENTORY (8) ---- Flight Unit Flight Unit Experimental Sensor Array Hacking Suite Rocket Launcher Rocket Launcher Peak State ------------ > --- POWER ------------ Improved Ion Engine > --- PROPULSION ------- Improved Hover Unit Improved Hover Unit > --- UTILITY ---------- Small Storage Unit Improved Terrain Scanner > --- WEAPON ----------- Light Assault Rifle Grenade Launcher > --- INVENTORY -------- Ion Engine Ion Engine Improved Hover Unit Improved Hover Unit Medium Storage Unit Rocket Launcher Rocket Launcher Hammer [Rating: 13] Favorites ----------- Power Ion Engine Engine Ion Engine Propulsion Improved Hover Unit Treads Light Treads Leg Aluminum Leg Hover Unit Improved Hover Unit Utility Improved Terrain Scanner Device Improved Terrain Scanner Storage Small Storage Unit Weapon Assault Rifle Energy Gun Small Laser Ballistic Gun Assault Rifle Launcher Grenade Launcher Impact Weapon Hammer Build | -11 -10 -10 ------- Run | Yrd Mat Min Slots Evolved . | . . . Power . | . . . Propulsion . | . . . Utility . | . . . Weapon . | . . . Parts Attached 24 | 6 15 3 Power 6 | 1 3 2 Engine 6 | 1 3 2 Core . | . . . Reactor . | . . . Propulsion 8 | 2 6 . Treads 2 | 2 . . Leg 2 | . 2 . Wheel . | . . . Hover 4 | . 4 . Flight . | . . . Utility 4 | 1 3 . Device 1 | . 1 . Storage 3 | 1 2 . Processor . | . . . Hackware . | . . . Protection . | . . . Artifact . | . . . Weapon 6 | 2 3 1 Energy Gun 1 | 1 . . Energy Cannon . | . . . Ballistic Gun 3 | 1 2 . Ballistic Cannon . | . . . Launcher 1 | . 1 . Special Weapon . | . . . Impact Weapon 1 | . . 1 Slashing Weapon . | . . . Piercing Weapon . | . . . Special Melee Weapon . | . . . Unidentified Prototypes . | . . . Parts Lost 8 | . 5 3 Power 2 | . 1 1 Propulsion 3 | . 2 1 Utility 1 | . . 1 Weapon 2 | . 2 . Highest Loss Streak 5 | . 5 1 To Critical Strikes . | . . . Average Slot Usage (%) 90 | . 92 84 Engine 13 | . 13 13 Treads 11 | . 14 . Leg 3 | . 3 . Hover 12 | . 8 27 Device 11 | . 12 8 Storage 14 | . 14 14 Ballistic Gun 14 | . 18 . Launcher 6 | . 4 14 Impact Weapon 1 | . . 5 Peak Build Rating 13 | 6 13 12 Average Rating 9 | 4 9 10 On Entrance 6 | . 5 13 Naked Turns . | . . . Heaviest Build 30 | 11 30 16 Greatest Support 40 | 40 40 14 Greatest Overweight (x) 6 | . 6 2 Average Overweight (x) . | . . . Largest Inventory Capacity 15 | 8 15 8 Average Capacity 10 | 7 11 8 Most Carried 9 | 1 9 8 Average Carried 4 | . 4 7 Final Capacity 8 | 8 8 8 Final Carried 8 | 1 8 6 Class Distribution -------------------- 100% | Mutant Dominant Class ---------------- Mutant | -10/Materials Mutant | -10/Mines Resources | -11 -10 -10 ----------- Run | Yrd Mat Min Matter Collected 819 | 260 468 91 Remotely . | . . . Salvage Created 835 | . 635 200 Parts 56 | . 42 14 Haulers Intercepted 2 | . 2 . Recyclers Shooed 1 | . 1 . Parts Field Recycled . | . . . Retrieved Matter . | . . . Parts Self-Destructed . | . . . Prevented . | . . . Kills | -11 -10 -10 ------- Run | Yrd Mat Min Combat Hostiles Destroyed 24 | . 13 11 Melee 4 | . . 4 Guns 8 | . 8 . AOE 11 | . 5 6 Classes Destroyed 9 | . 7 2 Worker 1 | . 1 . Builder 2 | . . 2 Tunneler 2 | . 1 1 Hauler 2 | . 2 . Operator 2 | . 2 . Watcher 3 | . 3 . Swarmer 9 | . 3 6 Grunt 12 | . 10 2 Assembled 3 | . . 3 Thug 1 | . . 1 Best Kill Streak 5 | . 3 5 Combat Bots Only 3 | . 3 3 Max Kills in Single Turn 3 | . 3 2 Gunslinging . | . . . Exploded 3 | . 3 1 Melee 1 | . . 1 Uniques/NPCs Destroyed . | . . . Combat | -11 -10 -10 -------- Run | Yrd Mat Min Hostile Shots Fired 83 | . 60 23 Missed 18 | . 13 5 Damage Taken 1087 | . 767 320 Core 254 | . 141 113 Absorbed by Shields . | . . . Core Remaining (%) 100 | 100 . . Volleys Fired 113 | . 101 12 Largest 2 | . 2 1 Hottest 40 | . 40 30 Shots Fired 146 | . 134 12 Gun 132 | . 132 . Cannon . | . . . Launcher 14 | . 2 12 Special . | . . . Kinetic 132 | . 132 . Thermal . | . . . Explosive 14 | . 2 12 Electromagnetic . | . . . Robot Hit Streak 13 | . 13 3 Robot Miss Streak 3 | . 3 2 Penetration Max . | . . . Secondary Targets . | . . . Shots Hit Robots 99 | . 88 11 Core Hits 53 | . 36 17 Critical Kills . | . . . Critical Parts Destroyed 1 | . . 1 Critical Strikes 1 | . . 1 Smash 1 | . . 1 Melee Attacks 18 | . . 18 Impact 18 | . . 18 Slashing . | . . . Piercing . | . . . Sneak Attacks 1 | . . 1 Combat Hostiles 1 | . . 1 Follow-up Attacks . | . . . Damage Inflicted 2324 | . 1425 899 Guns 1052 | . 1052 . Cannons . | . . . Explosions 950 | . 373 577 Melee 322 | . . 322 Ramming . | . . . Kinetic 1052 | . 1052 . Thermal 250 | . 250 . Explosive 700 | . 123 577 Electromagnetic . | . . . Impact 322 | . . 322 Slashing . | . . . Piercing . | . . . Highest Corruption 5 | . . 5 Average Corruption 5 | . . 5 Corruption Purged . | . . . Corruption Blocked . | . . . Effects 3 | . . 3 Message Errors 1 | . . 1 Energy Discharges 1 | . . 1 Data Loss (minor) 1 | . . 1 Overload Shots . | . . . Overflow Damage 297 | . 170 127 Projectiles . | . . . Explosions 233 | . 170 63 Melee 64 | . . 64 Knockbacks . | . . . Impact . | . . . Kinetic . | . . . Secondary . | . . . Self-Inflicted Damage 309 | . 209 100 Shots 6 | . 3 3 Rammed 2 | . 2 . Targets Rammed 2 | . 2 . Kicked . | . . . Crushed . | . . . Highest Temperature 21 | . 21 4 Average Temperature 4 | . 4 4 Received Heat Transfer 374 | . 312 62 Siege Activations . | . . . Robots Corrupted 1 | . . 1 Combat Hostiles 1 | . . 1 Parts Fried 3 | . . 3 Impact Corruptions 3 | . . 3 Robots Melted . | . . . Combat Hostiles . | . . . Parts Melted . | . . . Heat Transferred 150 | . 150 . Parts Sabotaged . | . . . Parts Stolen . | . . . Parts Stripped . | . . . Power Chain Reactions . | . . . Alert | -11 -10 -10 ------- Run | Yrd Mat Min Peak Influence 255 | . 166 255 Initial 43 | . . 43 Average 88 | . 78 140 Maximum Alert Level 1 | . . 1 Low Security (%) 92 | 100 100 62 Level 1 7 | . . 37 Level 2 . | . . . Level 3 . | . . . Level 4 . | . . . Level 5 . | . . . High Security . | . . . Max Security . | . . . Squads Dispatched 3 | . 3 . Investigation 1 | . 1 . Extermination . | . . . Reinforcement 2 | . 2 . Assault . | . . . Garrison . | . . . Intercept . | . . . Searches Triggered . | . . . Construction Impeded . | . . . Haulers Reinforced . | . . . Active Scanning Responses . | . . . Cargo Convoy Interrupts . | . . . Stealth | -11 -10 -10 --------- Run | Yrd Mat Min Distress Signals . | . . . Communications Jammed . | . . . Distress Signals . | . . . Times Spotted 42 | . 31 11 Peak Tracking Total 4 | . 4 3 Tactical Retreats 1 | . . 1 Traps | -11 -10 -10 ------- Run | Yrd Mat Min Traps Triggered 1 | . 1 . Indirectly . | . . . Trap Hack Attempts . | . . . Triggered . | . . . Disarmed . | . . . Reprogrammed . | . . . Reused . | . . . Traps Extracted . | . . . Installed . | . . . Triggered . | . . . Machines | -11 -10 -10 ---------- Run | Yrd Mat Min Machines Disabled 3 | . 3 . Max in Single Turn 3 | . 3 . Machines Repaired . | . . . Machines Dismantled . | . . . Machines Sabotaged . | . . . Overloaded Fab Kills . | . . . Hacking | -11 -10 -10 --------- Run | Yrd Mat Min Machines Accessed 6 | . 6 . Terminals 5 | . 5 . Fabricators . | . . . Repair Stations . | . . . Recycling Units 1 | . 1 . Scanalyzers . | . . . Garrison Access . | . . . Total Hacks 10 | . 10 . Successful 5 | . 5 . Failed 5 | . 5 . Catastrophic . | . . . Database Lockouts . | . . . Manual 8 | . 8 . Terminals 9 | . 9 . Fabricators . | . . . Repair Stations . | . . . Recycling Units 1 | . 1 . Scanalyzers . | . . . Garrison Access . | . . . Terminal Hacks 2 | . 2 . Robot Analysis 1 | . 1 . Alert Level 1 | . 1 . Fabricator Hacks . | . . . Repair Station Hacks . | . . . Recycling Unit Hacks 1 | . 1 . Report Inventory 1 | . 1 . Scanalyzer . | . . . Garrison Access Hacks . | . . . Unauthorized Hacks 2 | . 2 . Terminals 2 | . 2 . Botnet 1 | . 1 . Operators 1 | . 1 . Fabricators . | . . . Repair Stations . | . . . Recycling Units . | . . . Scanalyzers . | . . . Garrison Access . | . . . Data Cores Recovered . | . . . Used . | . . . Hacking Detections 3 | . 3 . Full Trace Events 1 | . 1 . Feedback Events . | . . . Feedback Blocked . | . . . Robot Schematics Acquired . | . . . Robots Built . | . . . Authchips . | . . . Time . | . . . Total Robot Build Rating . | . . . Part Schematics Acquired . | . . . Parts Built . | . . . Authchips . | . . . Time . | . . . Total Part Build Rating . | . . . Parts Repaired . | . . . Time . | . . . Parts Recycled . | . . . Recycled Matter . | . . . Retrieved Matter . | . . . Retrieved Components . | . . . Parts Scanalyzed . | . . . Part Schematics Acquired . | . . . Parts Damaged . | . . . Bothacking | -11 -10 -10 ------------ Run | Yrd Mat Min Used RIF Installer . | . . . Robots Hacked . | . . . Non-combat . | . . . Combat . | . . . Robot Hacks Applied . | . . . Relay Couplers Released . | . . . Fabnet Peak Effective % . | . . . Robots Rewired . | . . . Allies Hacked . | . . . Hacks Repelled . | . . . Allies | -11 -10 -10 -------- Run | Yrd Mat Min Total Allies 1 | . . 1 Largest Group 1 | . . 1 Highest-Rated Group 31 | . . 31 Highest-Rated Ally 31 | . . 31 Total Orders . | . . . Ally Attacks . | . . . Total Damage . | . . . Kills . | . . . Allies Corrupted . | . . . Allies Melted . | . . . Intel | -11 -10 -10 ------- Run | Yrd Mat Min Robot Analysis Total 1 | . 1 . Derelict Logs Recovered 2 | . . 2 Drone Launches . | . . . Drone Recoveries . | . . . Exploration | -11 -10 -10 ------------- Run | Yrd Mat Min Turns Passed 2052 | 67 1575 410 Spaces Moved 1220 | 39 795 386 Core 7 | 4 3 . Treads 420 | 35 385 . Legs 97 | . 97 . Wheels . | . . . Hover 696 | . 310 386 Flight . | . . . Fastest Speed 50 | 50 116 56 Average Speed 128 | 148 156 66 Slowest Speed 350 | 160 350 180 Overloaded Moves . | . . . Propulsion Burnouts . | . . . Robots Hopped . | . . . Cave-ins Triggered . | . . . Exploration Rate (%) 50 | 4 84 63 Regions Visited 2 Branch Regions 1 Pre-discovered Areas 1 | . . 1 Known Exits Taken . | . . . Unknown Exits Taken 2 | 1 1 . Scrap Searched . | . . . Spaces Dug 6 | . . 6 Terrain Destroyed 117 | . 44 73 Melee . | . . . Projectile . | . . . AOE 117 | . 44 73 Terrain Rammed . | . . . Walls Destroyed . | . . . Machines Disabled . | . . . Actions | -11 -10 -10 --------- Run | Yrd Mat Min Total 1531 | 46 988 497 Wait 127 | . 58 69 Move 1218 | 38 794 386 Hop . | . . . Pick Up 16 | 1 11 4 Fast Attach 14 | 6 8 . Attach 3 | . 1 2 Detach . | . . . Swap 7 | . 6 1 Drop 13 | 1 7 5 Fire 113 | . 101 12 Melee 18 | . . 18 Ram 2 | . 2 . Kick . | . . . Crush . | . . . Escape Stasis . | . . . Rewire . | . . . Trap . | . . . Miscellaneous . | . . . Route ------- -11/Scrapyard -10/Materials (discovered 5 exits: [*Mat x3] / [*Min x2]) -10/Mines (discovered 1 exit: [*Mat]) History --------- Turn | Location | Event 40 | -11/Scrapyard | Discovered new exit (range 16) 68 | -11/Scrapyard | Entered Materials 307 | -10/Materials | Build established: Mutant 387 | -10/Materials | Discovered new exit (range 15) 633 | -10/Materials | Discovered new exit (range 5) 846 | -10/Materials | Discovered new exit (range 13) 903 | -10/Materials | Core integrity fell below 50% 933 | -10/Materials | Lost 5 parts (1p2n2w) 1171 | -10/Materials | Discovered new exit (range 9) 1410 | -10/Materials | Discovered new exit (range 9) 1643 | -10/Materials | Entered Mines 1677 | -10/Mines | Found a damaged Exp. Sensor Array with a note attached 1679 | -10/Mines | Found Prototype Device 1700 | -10/Mines | Received a Mining Laser from a helpful Derelict 1843 | -10/Mines | Learned location of Storage (-8) 1853 | -10/Mines | Learned Materials terminal intel 1867 | -10/Mines | Discovered new exit (range 12) 1917 | -10/Mines | Excavation squad dispatched 1917 | -10/Mines | A large section of the Mines collapsed 2053 | -10/Mines | Core integrity fell below 20% 2053 | -10/Mines | Destroyed by Y-45 Defender with Heavy Assault Rifle Last Messages --------------- System corrupted by crushing effect (+5). Destroyed Asb. Hover Unit. Destroyed Asb. Maul. as-01903 system corrupted by crushing effect. as-01903 system terminally corrupted. as-14546 destroyed. System corrupted: Component data lost. Acquired 17 matter. Acquired 15 matter. System corrupted: Energy discharge (-97). T-07 Excavator is excavating. G-34 Mercenary destroyed. G-34 Mercenary suffers critical hit (Smash). Destroyed Ion Engine. G-34 Mercenary system corrupted by crushing effect. Sml. Laser fried. Aluminum Leg fried. G-34 Mercenary destroyed. Imp. Hover Unit destroyed. %VSUGQJ24XEE3JV9O6F9EVWB2ULTYK Map ----- +----------------------------------------------------+ | | | | | | | | | | | | | | | | | | | | | | | | | | | | | ???????????????????????????????????????????? | | ???????????????????????????????????????????? | | ???????????????????????????????????????????? | | ???????????????????????????????????????????? | | ??????????????####?????????????????????????? | | ?????????????## #######???????????????????? | | ?????#???????# #"####??????????????????? | | ???????#?????# "#"#;####????????????????? | | ?????????????## ##"# # ###???????????????? | | ??#???????????# ###### ###?????????????? | | ??????????????# #???# ####????????????? | | ??????????????## #???# @ #%=######+??????? | | ????????????#??######??# =Y* #?? | | ???????????????????????### t #?? | | ???????????????????????# ## #####; #?? | | ###########???????????## #";##???? #?? | | ##??????##### #####?????? ##?? | | ######### #??????## ##??????? ##??? | | ????????# ##?????# ##?????????#???? | | ???????## ####??# ##?????#??????? | | ???????# ##?## ##???????????? | | ######## #??# #???????????? | | #?## [ ##???????????? | | ##?# ##????? #?????? | | ########## ##??# = ##?????? #?????? | | ????????## #???## # ##?????? #?????? | | #???????# ##??## ## ##??????# ###???? | | ?#??????# #??# # ####?#### ##??? | | ????????## #??# [ ## #??? | | ?########## ##??# #??? | | ## ## #### #???# #??? | | # ### #???# # #??? | | ## #???########### #??? | | ?# ## #####?????????#???## ##??? | | ?# ### ##??????????#????#### ###???? | | ?# #?# #????????????????# ##?????? | +----------------------------------------------------+ Best States ------------- Heat Dissipation 25 Energy Generation 12 Energy Capacity 265 Matter Stores 300 Matter Capacity 300 Sight Range 16 Terrain Scan Range 16 Terrain Scan Density 10 Evasion (%) 53 Recoil Reduction 2 Item Schematics ----------------- None Robot Schematics ------------------ None Fabricated ------------ Nothing Alien Tech Used ----------------- None Achievements -------------- None Challenges ------------ None Game ------ Seed HypercooledGatlingBiocell Manual? 0 Play Time 00:17:20 Cumulative 46.3 hours Start 2024.10.05 @ 13:54:26 End 2024.10.05 @ 14:10:28 Sessions 1 Manual Loads 0 Difficulty Rogue Special Mode None Game No. 58 Rogue 58 Adventurer 0 Explorer 0 Win Type - Total 0 Types 0/0/0/0/0/0/0/0/0 Lore% 29 Gallery% 40 Achievement% 35 Wizard Run 0 Options --------- Layout 0 ASCII 0 Keyboard 0 Movement Mouse Keybinds 0 Fullscreen 1 Font 18/SmallcapsGlow Map View 76x50 Zoom Use 0% Tactical HUD 0 Map Filters NONE Filters NONE Steam 0 RUN: b9521f6d-fed0-4ccb-a6c2-abd7ef2368d8